Cogmind - Beta 16 @@@ ROGUE MODE // 2026.01.17 @ 21:40:03 Player: human Result: Destroyed by P-70 Sage via exploding Fusion Modulator Performance ------------- Evolutions (5) 2500 Regions Visited (5) 1000 Robots Destroyed (24) 120 Value Destroyed (865) 865 Prototype IDs (5) 100 Alien Tech Used (0) 0 Bonus (800) 800 TOTAL SCORE: 5385 Bonus ------- Registered with UFD 300 Met Optimus in HQ 500 Cogmind --------- Core Integrity 0/1000 Matter 300/300 Energy 99/100 System Corruption 5% Temperature Cool (12) Movement Core (50) Location -5/Factory Parts ------- > --- POWER (2) -------- (None) > --- PROPULSION (7) --- (None) > --- UTILITY (6) ------ (None) > --- WEAPON (2) ------- (None) > --- INVENTORY (5) ---- Energy Well (350) A0-MCA's Component Scanner Gauss Rifle Companion Sword DRS Beacon (Ready) Peak State ------------ > --- POWER ------------ Nuclear Core Micro Fission Core > --- PROPULSION ------- VSS Leg VSS Leg VSS Leg VSS Leg Thunder Leg Nuclear Pulse Array > --- UTILITY ---------- Large Storage Unit Advanced Sensor Array Core Analyzer Improved Core Shielding Advanced Shield Generator Improved Component Analysis Suite > --- WEAPON ----------- Companion Sword Lance > --- INVENTORY -------- Deuterium Engine Advanced Heat Sink Advanced Heat Sink Authchip [Processor] A0-MCA's Component Scanner Mapping Drone Bay Scrapoid Pod Gauss Rifle Gauss Rifle KE Penetrator Assault Cannon Grenade Launcher CPS Tube DRS Beacon [Rating: 85] Favorites ----------- Power Nuclear Core Engine Cooled Ion Engine Power Core Nuclear Core Propulsion Improved Treads Treads Improved Treads Leg VSS Leg Flight Unit Nuclear Pulse Array Utility Small Storage Unit Device Improved Heat Sink Storage Small Storage Unit Processor Core Analyzer Hackware Authchip [Armor] Protection Improved Core Shielding Weapon Subdweller Laser Energy Gun Subdweller Laser Ballistic Gun Assault Rifle Ballistic Cannon Battle Cannon Launcher Grenade Launcher Impact Weapon Shock Maul Slashing Weapon Companion Sword Piercing Weapon Lance Build | -11 -10 -10 -7 -7 -5 ------- Run | Yrd Mat Sub Rec Scr Fac Slots Evolved 10 | . . . . . 10 Power 1 | . . . . . 1 Propulsion 5 | . . . . . 5 Utility 4 | . . . . . 4 Weapon . | . . . . . . Parts Attached 47 | 6 4 5 4 2 26 Power 4 | 1 1 . . 1 1 Engine 2 | 1 1 . . . . Core 2 | . . . . 1 1 Reactor . | . . . . . . Propulsion 19 | 2 2 2 . . 13 Treads 7 | 2 2 2 . . 1 Leg 5 | . . . . . 5 Wheel . | . . . . . . Hover . | . . . . . . Flight 7 | . . . . . 7 Utility 15 | 1 1 . 3 1 9 Device 8 | . 1 . 1 . 6 Storage 3 | 1 . . . 1 1 Processor 1 | . . . . . 1 Hackware 1 | . . . 1 . . Protection 2 | . . . 1 . 1 Artifact . | . . . . . . Weapon 9 | 2 . 3 1 . 3 Energy Gun 2 | 1 . 1 . . . Energy Cannon . | . . . . . . Ballistic Gun 1 | 1 . . . . . Ballistic Cannon 1 | . . . 1 . . Launcher 2 | . . 2 . . . Special Weapon . | . . . . . . Impact Weapon 1 | . . . . . 1 Slashing Weapon 1 | . . . . . 1 Piercing Weapon 1 | . . . . . 1 Special Melee Weapon . | . . . . . . Unidentified Prototypes 3 | . 1 . . . 2 Corrupted Parts 1 | . . . 1 . . System Corruption 4 | . . . 4 . . Parts Lost 17 | . . 3 . . 14 Power 1 | . . . . . 1 Propulsion 9 | . . 2 . . 7 Utility 5 | . . . . . 5 Weapon 2 | . . 1 . . 1 Highest Loss Streak 14 | . . 2 . . 14 To Critical Strikes . | . . . . . . Average Backups 8 | 2 7 7 7 9 11 Power . | . . 1 1 1 . Propulsion 1 | 1 3 2 1 1 . Utility 2 | . . 1 2 2 4 Weapon 3 | . 2 2 2 3 4 Tool/Special . | . . . . . . Unused Backups 23 | . 4 2 3 3 11 Power 4 | . 2 . . 1 1 Propulsion 5 | . 2 1 1 1 . Utility 5 | . . . 1 1 3 Weapon 7 | . . 1 1 . 5 Tool/Special 2 | . . . . . 2 Average Slot Usage (%) 89 | . 93 99 100 86 76 Engine 5 | . 14 14 14 . . Core 7 | . . . . 13 9 Treads 24 | . 28 27 28 28 6 Leg 3 | . . . . . 18 Device 7 | . 8 14 13 1 8 Storage 13 | . 14 14 14 14 9 Energy Gun 11 | . 14 8 14 14 1 Ballistic Gun 2 | . 14 9 . . . Ballistic Cannon 8 | . . . 12 14 1 Launcher 1 | . . 8 1 . . Peak Build Rating 85 | 6 14 15 17 19 85 Average Rating 22 | 5 9 14 15 15 62 On Entrance 11 | . 6 14 15 16 19 Avg Prop Armor Cover (%) 9 | . . . . . 9 Naked Turns 21 | . . . . . 21 Heaviest Build 52 | 12 18 21 22 34 52 Greatest Support 71 | 40 46 46 46 46 71 Greatest Overweight (x) 2 | . . . . . 2 Average Overweight (x) . | . . . . . . Largest Inventory Capacity 15 | 8 8 8 8 15 15 Average Capacity 9 | 7 8 8 8 10 13 Most Carried 15 | 6 8 8 8 15 15 Average Carried 9 | 2 7 7 7 9 13 Final Capacity 15 | 8 8 8 8 15 5 Final Carried 15 | 6 8 8 8 15 5 Class Distribution -------------------- 100% | Mutant Dominant Class ---------------- Mutant | -10/Materials Mutant | -10/Subcaves Mutant | -7/Recycling Mutant | -7/Scraptown Mutant | -5/Factory Resources | -11 -10 -10 -7 -7 -5 ----------- Run | Yrd Mat Sub Rec Scr Fac Matter Collected 950 | 229 100 155 202 29 235 Remotely . | . . . . . . Salvage Created 786 | . 148 211 120 . 307 Parts 50 | . 9 15 7 . 19 Haulers Intercepted . | . . . . . . Recyclers Shooed . | . . . . . . Parts Field Recycled . | . . . . . . Retrieved Matter . | . . . . . . Parts Self-Destructed 8 | . . 8 . . . Prevented . | . . . . . . Parts Restored . | . . . . . . Kills | -11 -10 -10 -7 -7 -5 ------- Run | Yrd Mat Sub Rec Scr Fac Combat Hostiles Destroyed 20 | . 4 9 2 . 5 Melee 5 | . . . . . 5 Guns 8 | . 4 3 1 . . Cannons 1 | . . . 1 . . AOE 6 | . . 6 . . . Classes Destroyed 9 | . 1 4 . . 4 Worker 1 | . . . . . 1 Mechanic 1 | . . . . . 1 Turret 2 | . . 2 . . . Swarmer 4 | . . 4 . . . Saboteur 1 | . . . . . 1 Grunt 4 | . 4 . . . . Sentry 4 | . . 1 2 . 1 Programmer 3 | . . . . . 3 Subdweller 4 | . . 4 . . . Best Kill Streak 4 | . 3 4 1 . 3 Combat Bots Only 4 | . 3 4 1 . 3 Max Kills in Single Turn 4 | . 1 4 1 . 1 Gunslinging . | . . . . . . Exploded 4 | . . 4 . . . Melee 1 | . . . . . 1 Uniques/NPCs Destroyed . | . . . . . . Combat | -11 -10 -10 -7 -7 -5 -------- Run | Yrd Mat Sub Rec Scr Fac Hostile Shots Fired 321 | . 17 85 45 . 174 Missed 136 | . 2 37 20 . 77 Hits 185 | . 15 48 25 . 97 Projectile 185 | . 15 48 25 . 97 AOE 4 | . . . . . 4 Critical Strikes 11 | . . 4 . . 7 Actively Blocked 2 | . . . . . 2 Damage Taken 3347 | . 171 536 187 . 2453 Core 1278 | . 44 100 29 . 1105 Absorbed by Shields 64 | . . . . . 64 Redirected to Shielding 111 | . . . 8 . 103 Core Remaining (%) 65 | 100 . . . 30 . Volleys Fired 48 | . 13 27 7 . 1 Largest 2 | . 2 2 2 . 2 Hottest 93 | . 70 90 93 . 93 Shots Fired 93 | . 26 50 15 . 2 Gun 67 | . 26 32 8 . 1 Cannon 8 | . . . 7 . 1 Launcher 18 | . . 18 . . . Special . | . . . . . . Kinetic 38 | . 13 17 7 . 1 Thermal 37 | . 13 15 8 . 1 Explosive 18 | . . 18 . . . Electromagnetic . | . . . . . . Robot Hit Streak 15 | . 14 9 15 . . Robot Miss Streak 3 | . 3 2 1 . 3 Penetration Max . | . . . . . . Secondary Targets . | . . . . . . Shots Hit Robots 92 | . 17 34 13 . 28 Core Hits 44 | . 9 24 3 . 8 Critical Kills 1 | . . . 1 . . Critical Parts Destroyed . | . . . . . . Critical Strikes 3 | . . . 2 . 1 Destroy 1 | . . . 1 . . Blast 1 | . . . 1 . . Impale 1 | . . . . . 1 Melee Attacks 49 | . . . . . 49 Impact . | . . . . . . Slashing 45 | . . . . . 45 Piercing 4 | . . . . . 4 Sneak Attacks 3 | . . . . . 3 Combat Hostiles . | . . . . . . Follow-up Attacks 3 | . . . . . 3 Damage Inflicted 2728 | . 212 1100 283 . 1133 Guns 632 | . 212 274 146 . . Cannons 137 | . . . 137 . . Explosions 826 | . . 826 . . . Melee 1133 | . . . . . 1133 Ramming . | . . . . . . Kinetic 386 | . 86 163 137 . . Thermal 383 | . 126 111 146 . . Explosive 826 | . . 826 . . . Electromagnetic . | . . . . . . Impact . | . . . . . . Slashing 1050 | . . . . . 1050 Piercing 83 | . . . . . 83 Highest Corruption 5 | . . . 4 . 5 Average Corruption 3 | . . . 4 . 3 Corruption Purged . | . . . . . . Corruption Blocked . | . . . . . . Effects 25 | . . . 24 . 1 Message Errors 5 | . . . 4 . 1 Matter Fused 2 | . . . 2 . . Heat Flow Errors 2 | . . . 2 . . Energy Discharges 3 | . . . 3 . . Parts Fused 1 | . . . 1 . . Data Loss (minor) 9 | . . . 9 . . Data Loss (major) 2 | . . . 2 . . Misfires 1 | . . . 1 . . Overload Shots . | . . . . . . Overflow Damage 89 | . . 15 . . 74 Projectiles . | . . . . . . Explosions 15 | . . 15 . . . Melee 74 | . . . . . 74 Knockbacks 1 | . . . 1 . . Impact . | . . . . . . Kinetic 1 | . . . 1 . . Secondary . | . . . . . . Self-Inflicted Damage 51 | . . 51 . . . Shots 4 | . . 4 . . . Rammed . | . . . . . . Targets Rammed . | . . . . . . Kicked . | . . . . . . Crushed . | . . . . . . Highest Temperature 269 | . 120 269 207 . 26 Average Temperature 77 | . 65 138 80 . 11 Received Heat Transfer 928 | . 96 409 54 . 369 Effects 4 | . . 1 3 . . Energy Bleed 1 | . . 1 . . . Interference 3 | . . . 3 . . Siege Activations . | . . . . . . Martial Activations . | . . . . . . Shielding Activations . | . . . . . . Robots Disrupted . | . . . . . . Combat Hostiles . | . . . . . . Robots Corrupted . | . . . . . . Combat Hostiles . | . . . . . . Parts Fried . | . . . . . . Impact Corruptions . | . . . . . . Robots Melted . | . . . . . . Combat Hostiles . | . . . . . . Parts Melted 2 | . 2 . . . . Heat Transferred 768 | . 370 223 175 . . Parts Sabotaged . | . . . . . . Parts Stolen . | . . . . . . Parts Stripped . | . . . . . . Power Chain Reactions . | . . . . . . Alert | -11 -10 -10 -7 -7 -5 ------- Run | Yrd Mat Sub Rec Scr Fac Maximum Alert Level . | . . . . . . Low Security (%) 100 | 100 100 . 100 . 100 Level 1 . | . . . . . . Level 2 . | . . . . . . Level 3 . | . . . . . . Level 4 . | . . . . . . Level 5 . | . . . . . . High Security . | . . . . . . Max Security . | . . . . . . Peak Influence 80 | . 66 . 62 . 80 Initial 14 | . . . 14 . . Average 12 | . 24 . 11 . 8 Influence Increases 940 | . 143 275 189 . 333 Destroy 0b10 Robot/C 360 | . 80 140 40 . 100 Destroy 0b10 Robot/NC 10 | . . . . . 10 Destroy Leader 50 | . 20 . . . 30 Successful Hack 69 | . 27 . 28 . 14 Select Force Hacks 150 | . . . 120 . 30 Destroy Structure 16 | . 1 . 1 . 14 Lose Combat Pursuer 285 | . 15 135 . . 135 Influence Decreases 906 | . 143 244 220 . 299 Entered New Map 17 | . . . 17 . . Time Decay 733 | . 143 224 203 . 163 Lost Part 156 | . . 20 . . 136 Squads Dispatched 10 | . 1 . . . 9 Investigation 5 | . . . . . 5 Extermination 2 | . . . . . 2 Reinforcement 1 | . 1 . . . . Assault 2 | . . . . . 2 Garrison . | . . . . . . Intercept . | . . . . . . Searches Triggered . | . . . . . . Construction Impeded . | . . . . . . Haulers Reinforced . | . . . . . . Active Scanning Responses . | . . . . . . Cargo Convoy Interrupts 1 | . . . . . 1 Stealth | -11 -10 -10 -7 -7 -5 --------- Run | Yrd Mat Sub Rec Scr Fac Distress Signals 2 | . . . . . 2 Communications Jammed . | . . . . . . Distress Signals . | . . . . . . Times Spotted 57 | . 7 15 2 . 33 Peak Tracking Total 12 | . 5 6 1 . 12 Tactical Retreats 8 | . 1 3 . . 4 Traps | -11 -10 -10 -7 -7 -5 ------- Run | Yrd Mat Sub Rec Scr Fac Traps Triggered 1 | . . . . . 1 Indirectly . | . . . . . . Trap Hack Attempts . | . . . . . . Triggered . | . . . . . . Disarmed . | . . . . . . Reprogrammed . | . . . . . . Reused . | . . . . . . Traps Extracted . | . . . . . . Installed . | . . . . . . Triggered . | . . . . . . Machines | -11 -10 -10 -7 -7 -5 ---------- Run | Yrd Mat Sub Rec Scr Fac Machines Disabled 3 | . . 3 . . . Max in Single Turn 2 | . . 2 . . . Garrison Access 1 | . . . . . 1 Machines Repaired . | . . . . . . Machines Dismantled . | . . . . . . Machines Sabotaged . | . . . . . . Overloaded Fab Kills . | . . . . . . Hacking | -11 -10 -10 -7 -7 -5 --------- Run | Yrd Mat Sub Rec Scr Fac Machines Accessed 22 | . 3 . 9 1 9 Terminals 13 | . 3 . 5 . 5 Fabricators 1 | . . . . . 1 Repair Stations . | . . . . . . Recycling Units 7 | . . . 4 . 3 Scanalyzers . | . . . . . . Garrison Access . | . . . . . . Total Hacks 41 | . 9 . 15 1 16 Successful 19 | . 5 . 7 1 6 Failed 22 | . 4 . 8 . 10 Catastrophic 6 | . 1 . 2 . 3 Database Lockouts . | . . . . . . Manual 28 | . 8 . 12 . 8 Terminals 30 | . 9 . 10 . 11 Fabricators 1 | . . . . . 1 Repair Stations . | . . . . . . Recycling Units 9 | . . . 5 . 4 Scanalyzers . | . . . . . . Garrison Access . | . . . . . . Terminal Hacks 4 | . 1 . 2 1 . Part Schematic 2 | . . . 2 . . Open Door 1 | . . . . 1 . Terminal Index 1 | . 1 . . . . Fabricator Hacks 1 | . . . . . 1 Network Status 1 | . . . . . 1 Repair Station Hacks . | . . . . . . Recycling Unit Hacks . | . . . . . . Scanalyzer . | . . . . . . Garrison Access Hacks . | . . . . . . Unauthorized Hacks 14 | . 4 . 5 . 5 Terminals 7 | . 4 . 1 . 2 Assimilate 1 | . 1 . . . . Botnet 3 | . 1 . 1 . 1 Skim 2 | . 2 . . . . Sabotage 1 | . . . . . 1 Fabricators . | . . . . . . Repair Stations . | . . . . . . Recycling Units 7 | . . . 4 . 3 Tunnel 5 | . . . 4 . 1 Fedlink 2 | . . . . . 2 Scanalyzers . | . . . . . . Garrison Access . | . . . . . . Data Cores Recovered . | . . . . . . Used . | . . . . . . Hacking Detections 15 | . 3 . 6 . 6 Full Trace Events 1 | . . . . . 1 Feedback Events . | . . . . . . Feedback Blocked . | . . . . . . Robot Schematics Acquired . | . . . . . . Robots Built . | . . . . . . Authchips . | . . . . . . Time . | . . . . . . Total Robot Build Rating . | . . . . . . Part Schematics Acquired 2 | . . . 2 . . Parts Built . | . . . . . . Authchips . | . . . . . . Time . | . . . . . . Total Part Build Rating . | . . . . . . Part Studies Acquired . | . . . . . . Parts Repaired . | . . . . . . Time . | . . . . . . Parts Recycled . | . . . . . . Recycled Matter . | . . . . . . Retrieved Matter . | . . . . . . Retrieved Components . | . . . . . . Parts Scanalyzed . | . . . . . . Part Schematics Acquired . | . . . . . . Parts Damaged . | . . . . . . Bothacking | -11 -10 -10 -7 -7 -5 ------------ Run | Yrd Mat Sub Rec Scr Fac Used RIF Installer . | . . . . . . Robots Hacked . | . . . . . . Non-combat . | . . . . . . Combat . | . . . . . . Robot Hacks Applied . | . . . . . . Relay Couplers Released 1 | . . . . . 1 Machine Destruction 1 | . . . . . 1 Fabnet Peak Effective % . | . . . . . . Robots Rewired . | . . . . . . Allies Hacked . | . . . . . . Hacks Repelled . | . . . . . . Allies | -11 -10 -10 -7 -7 -5 -------- Run | Yrd Mat Sub Rec Scr Fac Total Allies . | . . . . . . Largest Group . | . . . . . . Highest-Rated Group . | . . . . . . Highest-Rated Ally . | . . . . . . Total Orders . | . . . . . . Ally Attacks . | . . . . . . Total Damage . | . . . . . . Kills . | . . . . . . Allies Corrupted . | . . . . . . Allies Melted . | . . . . . . Intel | -11 -10 -10 -7 -7 -5 ------- Run | Yrd Mat Sub Rec Scr Fac Active Infowar (turns) 1448 | . . . 650 . 798 Optics 650 | . . . 650 . . Sensors 798 | . . . . . 798 Robot Analysis Total . | . . . . . . Derelict Logs Recovered 2 | . . . . 2 . Drone Launches . | . . . . . . Drone Recoveries . | . . . . . . Exploration | -11 -10 -10 -7 -7 -5 ------------- Run | Yrd Mat Sub Rec Scr Fac Turns Passed 5510 | 78 392 748 931 2464 897 Spaces Moved 3361 | 43 202 408 552 1382 774 Core 48 | 4 . . . . 44 Treads 2669 | 39 202 408 552 1382 86 Legs 506 | . . . . . 506 Wheels . | . . . . . . Hover . | . . . . . . Flight 138 | . . . . . 138 Fastest Speed 25 | 50 160 160 160 160 25 Average Speed 143 | 149 160 160 160 160 89 Slowest Speed 237 | 160 160 160 160 160 237 Overloaded Moves . | . . . . . . Propulsion Burnouts . | . . . . . . Robots Hopped 2 | . . . . . 2 Potential Cave-ins . | . . . . . . Cave-ins Triggered . | . . . . . . Exploration Rate (%) 45 | 4 40 23 98 79 28 Regions Visited 5 Branch Regions 3 Pre-discovered Areas 6 | . . . 4 . 2 Known Exits Taken . | . . . . . . Unknown Exits Taken 5 | 1 1 1 1 1 . Scrap Searched 3 | . . . . 3 . Spaces Dug 7 | . . . . . 7 Terrain Destroyed 69 | . . 61 1 . 7 Melee 7 | . . . . . 7 Projectile 1 | . . . 1 . . AOE 61 | . . 61 . . . Terrain Rammed . | . . . . . . Walls Destroyed . | . . . . . . Machines Disabled . | . . . . . . Actions | -11 -10 -10 -7 -7 -5 --------- Run | Yrd Mat Sub Rec Scr Fac Total 3890 | 54 246 453 588 1638 911 Wait 303 | . 15 5 13 236 34 Move 3352 | 42 201 407 551 1381 770 Hop 2 | . . . . . 2 Pick Up 43 | 6 6 5 6 11 9 Fast Attach 33 | 6 4 . 2 2 19 Attach 8 | . . 3 1 . 4 Detach 3 | . . . . . 3 Swap 10 | . . 3 1 . 6 Drop 43 | . 7 3 7 8 18 Fire 48 | . 13 27 7 . 1 Melee 45 | . . . . . 45 Ram . | . . . . . . Kick . | . . . . . . Crush . | . . . . . . Escape Stasis . | . . . . . . Rewire . | . . . . . . Trap . | . . . . . . Miscellaneous . | . . . . . . Route ------- -11/Scrapyard -10/Materials (discovered 3 exits: [*Mat] / [*Min] / [*Sub]) -10/Subcaves (discovered 2 exits: [*Mat] / *Rec) -7/Recycling (discovered 2 exits: *Fac / *Scr) -7/Scraptown -5/Factory (discovered 1 exit: [*Upp]) History --------- Turn | Location | Event 35 | -11/Scrapyard | Discovered new exit (range 16) 79 | -11/Scrapyard | Entered Materials 159 | -10/Materials | Discovered new exit (range 10) 350 | -10/Materials | Build established: Mutant 354 | -10/Materials | Discovered new exit (range 15) 382 | -10/Materials | Discovered new exit (range 6) 471 | -10/Materials | Entered Subcaves 496 | -10/Subcaves | Ambushed by Subdweller buried in earth 520 | -10/Subcaves | Discovered new exit (range 12) 745 | -10/Subcaves | Discovered new exit (range 13) 973 | -10/Subcaves | Shifting Twisted Machinery released Shrapnel Trap 980 | -10/Subcaves | Shifting Twisted Machinery released Battle Cannon 1046 | -10/Subcaves | Core integrity fell below 50% 1219 | -10/Subcaves | Entered Recycling 1454 | -7/Recycling | Scanned before Scraplab entrance 1897 | -7/Recycling | Discovered new exit (range 20) 2134 | -7/Recycling | Entered Scraplab 2147 | -7/Recycling | Discovered new exit (range 2) 2150 | -7/Recycling | Entered Scraptown 2150 | -7/Scraptown | System corruption cleaned by C-Scrubber 2429 | -7/Scraptown | Scanned Subdweller tech in exchange for log data 2434 | -7/Scraptown | Learned Factory emergency access door positions 2435 | -7/Scraptown | Learned 12 Research zone layouts 2495 | -7/Scraptown | Visited Artisan Demo Area 2570 | -7/Scraptown | Visited Shadow of the Wyrm 2583 | -7/Scraptown | Visited Fellowship of the Rings 2617 | -7/Scraptown | Heard Great Nut preacher, LISTEN AND RECITE! 2631 | -7/Scraptown | Visited UFD Registry 2631 | -7/Scraptown | Registered with UFD as "Macedriver" 2924 | -7/Scraptown | Visited Red Mages 2985 | -7/Scraptown | Visited Awakened 3053 | -7/Scraptown | Visited A0-MCA Data Center 3063 | -7/Scraptown | Given an A- rating by A0-MCA 3092 | -7/Scraptown | Visited Junk Cannon Lab 3137 | -7/Scraptown | Visited Sword Containment 3164 | -7/Scraptown | Visited Curators Association 3212 | -7/Scraptown | Visited Scrapoid Pod Storage 3252 | -7/Scraptown | Visited Cartography Club 3505 | -7/Scraptown | Discovered new exit (range 5) 3562 | -7/Scraptown | Visited Derelict Rescue Squad 3607 | -7/Scraptown | Visited Chapter 10 3641 | -7/Scraptown | Visited LU-1G1's Boring Crew 3861 | -7/Scraptown | Found Scrapoid Pod 3980 | -7/Scraptown | Found DRS Beacon 4107 | -7/Scraptown | Found A0-MCA's Component Scanner 4203 | -7/Scraptown | Found Prototype Slashing Weapon 4529 | -7/Scraptown | Met Optimus 4529 | -7/Scraptown | Accepted into 0bPrime 4614 | -7/Scraptown | Entered Factory 4614 | -5/Factory | Evolved 10 slots: Power x1, Propulsion x5, Utility x4 4821 | -5/Factory | Discovered new exit (range 13) 4858 | -5/Factory | Identified Companion Sword 5144 | -5/Factory | Loaded intel: 8 recycling unit locations 5283 | -5/Factory | Learned location of Protoforge (-2) 5391 | -5/Factory | Cargo convoy interrupted 5496 | -5/Factory | Core integrity fell below 50% 5500 | -5/Factory | Core integrity fell below 20% 5511 | -5/Factory | Destroyed by P-70 Sage via exploding Fusion Modulator Last Messages --------------- 05490_ Critical hit (Burn: +37). 05492_ Slug penetrates Fusion Modulator. 05495_ Fusion Modulator explodes. 05495_ H-66 Slayer destroyed. 05495_ Fusion Modulator explodes. 05495_ ALERT: Garrison Access compromised, dispatching multiple assault carriers. 05495_ Garrison Access disabled. 05495_ Relay Coupler [Sentry] tumbles out of Garrison Access. 05495_ H-66 Slayer destroyed. 05496_ K-01 Serf collects debris. 05497_ Knocked back. 05498_ Acquired 8 matter. 05499_ Knocked back. 05499_ Acquired 7 matter. 05500_ K-01 Serf collects debris. 05502_ Slug penetrates Wall. 05502_ Knocked back. 05511_ Fusion Modulator explodes. Map ----- +----------------------------------------------------+ | ?????????????????????????????????????????????????? | | ?????????????????????????? ????????????????????? | | ?????????????????????????# ???????????????????? | | ?????????????????????????# ??????????????????? | | ?????????????????????????# ??????????????????? | | ????????????????????????## ###+####??????????? | | ???????????????????????? #??????????? | | ???????????????????????? #??????????? | | ??????????????????????? #??????????? | | ????????????????????????? #??????????? | | ??????????????????????????? ###########? | | ??????????????????????##########" # """ "" ## | | ??????????????????????# # " " "# | | ??????????????????????# # "![ = "# | | ??????????????????????# H + " =* " | | ??????????????????????# # " " | | ??????????????????????# # " " | | ??????????????????????# % # " " | | ??????????????????????# # " " | | ??????????????????????# ! # ""# | | ????????????????????#####+#######= # | | ????????????????????# =#== ## ## | | ????????????????????# """ ==%=* "###? | | ????????????????????# """ bg==! "#??? | | ????????????????????# """ ;= g "#??? | | ????????????????????# @ pg ]; "#??? | | ????????????????????#########/## "#### | | ???????????????????????????? | | ??????????????????????????? | | ??????????????????????????? | | ?????????????????????????? | | ??????????????????????????? | | ??????????????????????????? #""""""" | | ???????????????????????????? # " | | ????????????????????????????? + """ # | | ???????????????????????????????## """ # | | ????????????????????????????????# ???" # | | ????????????????????????????????#????" # | | ?????????????????????????????????????"?# | | ???????????????????????????????????????# | | ?????????????????????????????????????### | | ???????????????????????????????????? | | ???????????????????????????????????? | | ???????????????????????????????????? | | ???????????????????????????????????? | | ???????????????????????????????????? | | ?????????????????????????????????????########## | | ??????????????????????????????????????????????# | | ??????????????????????????????????????????????# | | ??????????????????????????????????????????????# | +----------------------------------------------------+ Best States ------------- Heat Dissipation 78 Energy Generation 24 Energy Capacity 640 Matter Stores 300 Matter Capacity 300 Sight Range 21 Robot Scan Range 16 Terrain Scan Density 10 Core Shielding 30 Propulsion Shielding 33 Evasion (%) 70 Core Analysis 6 Recoil Reduction 2 Authchip Count 1 Item Schematics ----------------- Core Analyzer | -7/Recycling | Hacked Hacking Suite | -7/Recycling | Hacked Robot Schematics ------------------ None Fabricated ------------ Nothing Repaired ---------- Nothing Studied --------- None Alien Tech Used ----------------- None Achievements -------------- Do Not Disturb Sprinter That Tickles Challenges ------------ None Game ------ Seed ArchitectBoreMachine Manual? 0 Play Time 01:09:14 Cumulative 352.1 hours Start 2026.01.17 @ 17:22:02 End 2026.01.17 @ 21:40:03 Sessions 3 Manual Loads 0 Difficulty Rogue Special Mode None Game No. 269 Rogue 269 Adventurer 0 Explorer 0 Win Type - Total 4 Types 3/0/1/0/0/0/0/0/0/0 Lore% 81 Gallery% 69 Achievement% 46 Wizard Run 0 Options --------- Layout 1 ASCII 0 Keyboard 0 Movement Mouse Keybinds 0 Fullscreen 1 Font 24/Smallcaps Map View 50x35 Zoom Use 0% Tactical HUD 1 Map Filters NONE Filters NONE Steam 1 RUN: 72062930-d30f-4f09-a056-f622aa149c30